bitfinex/quotes_SOLUSD_20240808
["timestamp","ask_amount","ask_price","bid_price","bid_amount"]
[1723079549069,0.8278956,145.6,145.59,21.37313796]
[1723079549267,16.5485,145.69,145.59,20.0]
[1723079549465,16.5485,145.69,145.61,35.91]
[1723079549769,16.5485,145.69,145.59,20.0]
[1723079549770,0.5992748,145.69,145.62,26.1028]
[1723079549979,0.5992748,145.69,145.63,1.37297999]
[1723079550145,0.5992748,145.69,145.63,66.37297999]
[1723079550343,0.5992748,145.69,145.63,21.37297999]
[1723079550570,0.5992748,145.69,145.66,43.59]
[1723079550877,0.5992748,145.69,145.67,86.71227147]
[1723079551047,0.5992748,145.69,145.68,1.37222019]
[1723079551354,0.9064876,145.73,145.68,1.37222019]
[1723079551355,0.9064876,145.73,145.68,1.54222019]
[1723079551546,0.9064876,145.73,145.68,43.59]
[1723079551751,0.9064876,145.73,145.69,20.0]
[1723079552052,0.9064876,145.73,145.64,43.59]
[1723079552471,0.9064876,145.73,145.64,1.37257969]
[1723079552640,0.9064876,145.73,145.62,6.1028]
[1723079552845,0.9064876,145.73,145.63,1.37283247]
[1723079553345,0.9064876,145.73,145.67,43.59]
[1723079553565,0.9064876,145.73,145.68,1.37207828]
[1723079553761,0.9064876,145.73,145.71,43.59]
[1723079553960,0.9064876,145.73,145.71,44.96192918]
[1723079554289,0.9064876,145.73,145.72,65.0]
[1723079554609,15.6038,145.85,145.72,20.0]
[1723079554761,15.6038,145.85,145.73,46.3714659]
[1723079554963,15.6038,145.85,145.75,43.59]
[1723079555184,0.9064876,145.89,145.76,66.54132926]
[1723079555363,0.9064876,145.89,145.79,43.59]
[1723079555558,0.9064876,145.89,145.83,43.59]
[1723079555784,0.9064876,145.89,145.84,66.54060295]
[1723079555963,0.9064876,145.89,145.84,66.71060295]
[1723079556360,14.60695223,145.99,145.87,43.59]
[1723079556595,14.60695223,145.99,145.84,66.71060295]
[1723079556596,14.60695223,145.99,145.91,43.59]
[1723079556764,14.60695223,145.99,145.89,1.37002751]
[1723079556966,14.60695223,145.99,145.84,108.59]
[1723079557187,14.60695223,145.99,145.84,65.0]
[1723079557402,14.60695223,145.99,145.84,66.37050979]
[1723079557566,14.60695223,145.99,145.84,20.0]
[1723079557889,14.60695223,145.99,145.85,1.37074783]
[1723079558091,14.60695223,145.99,145.86,1.37084668]
[1723079558308,14.60695223,145.99,145.83,1.37050263]
[1723079558590,14.60695223,145.99,145.84,1.37025526]
[1723079558770,14.60695223,145.99,145.84,21.37048045]
[1723079559168,14.60695223,145.99,145.87,43.59]
[1723079559476,14.60695223,145.99,145.84,20.0]
[1723079559678,6.8524,145.94,145.81,43.59]
[1723079559867,6.8505,145.98,145.82,1.37084476]
[1723079560073,6.8509,145.97,145.82,1.37084476]
[1723079560299,14.60695223,145.99,145.82,1.37084476]
[1723079560594,14.60695223,145.99,145.82,17.1196]
[1723079560801,14.60695223,145.99,145.83,0.84164946]
[1723079561002,14.60695223,145.99,145.85,43.59]
[1723079561292,14.60695223,145.99,145.86,20.0]
[1723079561599,0.9064876,146.05,145.93,43.59]
[1723079561779,0.9064876,146.05,145.94,21.2231451]
[1723079561962,0.9064876,146.05,145.95,1.26045402]
[1723079562168,0.9064876,146.05,145.94,20.0]
[1723079562365,0.9064876,146.05,145.89,43.59]
[1723079562563,0.9064876,146.05,145.85,43.59]
[1723079562803,6.8501,145.99,145.85,43.59]
[1723079563095,6.848,146.03,145.89,43.59]
[1723079563283,0.17,146.02,145.9,1.37017221]
[1723079563795,7.7536876,146.05,145.9,1.37017221]
[1723079563796,0.9064876,146.05,145.93,43.59]
[1723079563985,0.9064876,146.05,145.94,21.36950409]
[1723079564175,0.9064876,146.05,145.94,20.0]
[1723079564384,0.9064876,146.05,145.95,1.36980049]
[1723079564883,0.9064876,146.05,145.96,49.9517]
[1723079565091,0.9064876,146.05,145.97,21.36943704]
[1723079565403,0.9064876,146.05,145.92,43.59]
[1723079565568,0.9064876,146.05,145.92,1.37007408]
[1723079565900,0.9064876,146.05,145.9,7.53332379]
[1723079566196,0.9064876,146.05,145.9,7.53347425]
[1723079566406,0.9064876,146.05,146.0,43.59]
[1723079566570,0.9064876,146.05,146.01,1.36916164]
[1723079566770,0.9064876,146.05,146.0,43.59]
[1723079567324,0.9064876,146.05,146.01,66.36920897]
[1723079567467,0.9064876,146.05,146.01,20.0]
[1723079567666,0.9064876,146.05,145.97,1.36935068]
[1723079567865,0.9064876,146.05,145.91,20.0]
[1723079567866,0.9064876,146.05,145.92,43.59]
[1723079568380,0.9064876,146.05,145.93,1.37005488]
[1723079568788,0.9064876,146.05,145.97,43.59]
[1723079568996,0.9064876,146.05,146.01,43.59]
[1723079569185,0.9064876,146.05,146.02,21.36886465]
[1723079569385,0.9064876,146.05,146.02,20.0]
[1723079569910,0.9064876,146.05,146.02,21.36929859]
[1723079570611,0.9064876,146.05,146.02,20.0]
[1723079570777,0.9064876,146.05,146.02,21.36907144]
[1723079571103,0.9064876,146.05,145.93,20.0]
[1723079571415,0.9064876,146.05,145.97,43.59]
[1723079571600,0.9064876,146.05,146.01,43.59]
[1723079571783,0.9064876,146.05,146.02,1.36900284]
[1723079572183,0.9064876,146.05,146.01,38.95900284]
[1723079572600,0.9064876,146.05,146.02,20.0]
[1723079572785,0.9064876,146.05,146.02,21.36901695]
[1723079572980,0.9064876,146.05,146.01,38.95900284]
[1723079573405,0.9064876,146.05,146.02,1.3692962]
[1723079573918,15.2175,146.13,146.02,1.3692962]
[1723079573919,15.2175,146.13,146.02,89.9592962]
[1723079574120,15.7209,146.19,146.06,43.59]
[1723079574407,15.7209,146.19,146.02,46.3692962]
[1723079574408,15.7209,146.19,146.1,43.59]
[1723079574613,0.9064876,146.21,146.11,20.0]
[1723079574793,0.9064876,146.21,146.11,21.36816893]
[1723079575314,0.9064876,146.21,146.12,45.0]
[1723079575487,15.7209,146.25,146.12,45.0]
[1723079575488,15.7209,146.25,146.13,21.36791713]
[1723079575689,0.3065312,146.21,146.14,43.59]
[1723079576086,0.3065312,146.21,146.15,1.36782926]
[1723079576303,0.3065312,146.21,146.02,40.0]
[1723079576510,0.3065312,146.21,146.13,43.59]
[1723079576816,0.3065312,146.21,146.14,21.26352041]
[1723079577133,0.3065312,146.21,146.15,1.36770593]
[1723079577817,0.3065312,146.21,146.17,43.59]
[1723079578111,0.3065312,146.21,146.18,21.36742524]
[1723079578313,0.3065312,146.21,146.18,20.0]
[1723079579033,0.3065312,146.21,146.19,45.0]
[1723079579308,0.3065312,146.21,146.2,20.17]
[1723079579512,0.3065312,146.21,146.2,20.0]
[1723079580099,0.3065312,146.21,146.17,43.59]
[1723079580337,0.3065312,146.21,146.09,63.59]
[1723079580338,0.3065312,146.21,146.09,43.59]
[1723079580483,0.3065312,146.21,146.1,1.36806451]
[1723079580687,0.3065312,146.21,146.13,43.59]
[1723079581214,16.0828,146.2,146.06,43.59]
[1723079581501,6.8405,146.19,146.05,7.93312154]
[1723079581707,15.9128,146.2,146.05,7.93312154]
[1723079581915,15.7428,146.2,146.1,43.59]
[1723079582215,0.3065312,146.21,146.14,63.59]
[1723079582511,16.1413,146.28,146.18,43.59]
[1723079582717,15.4488,146.35,146.22,43.59]
[1723079582887,15.4488,146.35,146.23,20.0]
[1723079583086,15.4488,146.35,146.3,43.59]
[1723079583321,1.18747,146.37,146.34,43.59]
[1723079583618,10.70752207,146.49,146.31,48.17790605]
[1723079583619,15.4488,146.51,146.38,43.59]
[1723079583791,15.4488,146.51,146.42,43.59]
[1723079583988,15.4488,146.51,146.46,43.59]
[1723079584196,11.88704776,146.58,146.46,43.59]
[1723079584197,1.18747,146.58,146.47,21.36492037]
[1723079584400,1.18747,146.58,146.5,43.59]
[1723079584596,1.18747,146.58,146.47,66.36492037]
[1723079584597,1.18747,146.58,146.51,1.36445166]
[1723079584799,1.18747,146.58,146.47,20.0]
[1723079584999,1.18747,146.58,146.42,43.59]
[1723079585310,1.18747,146.58,146.46,43.59]
[1723079585508,1.18747,146.58,146.47,20.0]
[1723079585730,1.18747,146.58,146.46,43.59]
[1723079586020,1.18747,146.58,146.53,20.0]
[1723079586221,20.0,146.82,146.5,63.59]
[1723079586222,7.58197,146.79,146.57,20.0]
[1723079586404,10.68804745,146.76,146.6,43.59]
[1723079586720,7.58197,146.79,146.61,20.17]
[1723079586889,11.87040431,146.79,146.62,1.36322278]
[1723079587091,6.815,146.74,146.62,1.36322278]
[1723079587295,1.18747,146.79,146.69,43.59]
[1723079587591,6.8151,146.74,146.61,20.0]
[1723079587791,1.36900284,146.73,146.55,43.59]
[1723079587991,1.36900284,146.76,146.56,1.3641291]
[1723079588227,6.8154,146.73,146.6,43.59]
[1723079588415,6.8154,146.73,146.56,44.9541291]
[1723079588416,1.36900284,146.73,146.56,44.9541291]
[1723079588617,1.36900284,146.73,146.52,20.0]
[1723079588809,6.8197,146.64,146.57,20.0]
[1723079588998,1.36900284,146.7,146.52,1.36432751]
[1723079589330,17.23200284,146.71,146.52,1.36432751]
[1723079589528,17.23200284,146.71,146.58,43.59]
[1723079589529,15.863,146.71,146.58,43.59]
[1723079589736,15.863,146.71,146.59,1.3634987]
[1723079590024,1.18747,146.79,146.62,43.59]
[1723079590225,6.813,146.78,146.63,1.36316814]
[1723079590405,1.18747,146.79,146.64,1.36319194]
[1723079590600,1.18747,146.79,146.64,1.36333108]
[1723079590793,6.815,146.74,146.63,20.0]
[1723079591001,6.8167,146.7,146.62,17.028]
[1723079591224,1.36900284,146.77,146.63,20.0]
[1723079591435,6.815,146.74,146.63,20.0]
[1723079591638,1.36900284,146.76,146.63,20.0]
[1723079591839,1.36900284,146.75,146.58,43.59]
[1723079592005,18.40520284,146.75,146.52,20.0]
[1723079592205,17.0425,146.7,146.57,15.863]
[1723079592526,44.77747,146.79,146.58,43.59]
[1723079592527,8.18420284,146.74,146.58,43.59]
[1723079592732,1.36900284,146.78,146.59,1.36337223]
[1723079593036,2.55647284,146.79,146.59,1.36337223]
[1723079593229,1.18747,146.79,146.66,43.59]
[1723079593435,1.18747,146.79,146.67,1.36264733]
[1723079593637,1.18747,146.79,146.67,20.0]
[1723079593837,1.18747,146.79,146.63,1.362963]
[1723079594125,1.18747,146.79,146.64,0.17]
[1723079594325,1.18747,146.79,146.65,1.3628701]
[1723079594634,6.8132,146.78,146.65,1.36271406]
[1723079594931,8.00007,146.79,146.65,1.36271406]
[1723079595108,1.18747,146.79,146.66,43.76]
[1723079595305,1.18747,146.79,146.67,20.0]
[1723079595513,1.18747,146.79,146.68,1.36304619]
[1723079596027,1.18747,146.79,146.67,1.12981568]
[1723079596330,1.18747,146.79,146.74,43.59]
[1723079596538,1.18747,146.79,146.75,1.23892105]
[1723079596715,1.18747,146.79,146.74,44.93212437]
[1723079596919,1.18747,146.79,146.75,20.0]
[1723079597407,1.18747,146.79,146.71,21.36199706]
[1723079597608,1.18747,146.79,146.71,20.0]
[1723079597824,1.18747,146.79,146.68,1.36271025]
[1723079598203,1.18747,146.79,146.7,20.0]
[1723079598437,1.18747,146.79,146.71,1.36209474]
[1723079598740,1.18747,146.79,146.63,10.30782134]
[1723079598741,1.18747,146.79,146.64,1.36250235]
[1723079598905,6.813,146.78,146.65,1.36317543]
[1723079599100,8.00017,146.79,146.62,43.59]
[1723079599338,8.00017,146.79,146.63,1.36284393]
[1723079599634,0.17,146.78,146.63,1.36298819]
[1723079599852,1.18747,146.79,146.63,1.36298819]
[1723079600026,1.18747,146.79,146.66,43.59]
[1723079600343,1.18747,146.79,146.67,1.36275056]
[1723079600510,1.18747,146.79,146.67,1.36253623]
[1723079600709,1.18747,146.79,146.68,1.35862437]
[1723079601019,1.18747,146.79,146.63,1.35862437]
[1723079601219,1.18747,146.79,146.65,43.59]
[1723079601424,1.18747,146.79,146.66,1.35834645]
[1723079601727,1.18747,146.79,146.74,20.0]
[1723079602026,116.2768,146.9,146.77,43.59]
[1723079602229,116.2768,146.9,146.78,20.0]
[1723079602431,116.2768,146.9,146.79,0.34]
[1723079602615,116.2768,146.9,146.79,0.17]
[1723079603023,116.2768,146.9,146.78,20.0]
[1723079603333,116.2768,146.9,146.77,0.17]
[1723079603334,112.5668187,146.9,146.77,0.17]
[1723079603828,6.8081,146.89,146.77,1.05084438]
[1723079604040,112.5668187,146.9,146.77,1.05084438]
[1723079604213,6.8079,146.89,146.75,0.09498076]
[1723079604411,6.8079,146.89,146.75,45.26498076]
[1723079604617,112.5668187,146.9,146.76,21.3618725]
[1723079604815,6.8079,146.89,146.75,0.09498076]
[1723079605021,112.5668187,146.9,146.75,0.09498076]
[1723079605338,112.5668187,146.9,146.75,0.5827183]
[1723079605507,6.8079,146.89,146.75,0.09498076]
[1723079605711,112.5668187,146.9,146.75,0.09498076]
[1723079605910,112.5668187,146.9,146.75,0.17]
[1723079606111,119.3742187,146.9,146.75,0.17]
[1723079606334,112.5668187,146.9,146.74,20.0]
[1723079606636,112.5668187,146.9,146.8,43.59]
[1723079606834,112.5668187,146.9,146.81,20.0]
[1723079607038,96.2900187,146.9,146.81,20.0]
[1723079607228,96.2900187,146.9,146.84,43.59]
[1723079607429,96.2900187,146.9,146.85,21.16771106]
[1723079607732,96.2900187,146.9,146.86,45.17]
[1723079608039,96.2900187,146.9,146.87,20.0]
[1723079608342,96.2900187,146.9,146.88,45.0]
[1723079608541,96.2900187,146.9,146.85,20.0]
[1723079608706,96.2900187,146.9,146.84,1.35804394]
[1723079608908,96.2900187,146.9,146.87,43.59]
[1723079609133,96.2900187,146.9,146.88,20.0]
[1723079609340,96.2900187,146.9,146.88,21.36121099]
[1723079609509,58.886239,147.07,146.88,26.4604]
[1723079609510,1.36900284,147.06,146.88,26.4604]
[1723079609708,17.216339,147.07,146.92,43.59]
[1723079609925,10.66088931,147.2,147.03,43.15]
[1723079610253,15.9556,147.28,147.08,43.15]
[1723079610463,15.9556,147.28,147.09,21.35489852]
[1723079610753,15.9556,147.28,147.09,1.35489852]
[1723079610922,6.7931,147.21,147.09,1.35489852]
[1723079611116,15.9556,147.28,147.09,1.35489852]
[1723079611317,15.9556,147.28,147.1,0.34]
[1723079611318,6.7912,147.25,147.1,0.34]
[1723079611629,15.9556,147.28,147.11,1.35471431]
[1723079612020,15.9556,147.28,147.12,0.17]
[1723079612349,15.9556,147.28,147.12,64.67793201]
[1723079612552,15.9556,147.28,147.16,43.15]
[1723079612719,1.524653,147.34,147.16,43.15]
[1723079612720,6.7877,147.33,147.17,41.69747066]
[1723079612924,1.524653,147.34,147.17,95.97442675]
[1723079613119,8.312053,147.34,147.18,6.0909]
[1723079613316,6.7881,147.32,147.19,46.5272862]
[1723079613526,6.7894,147.29,147.2,20.0]
[1723079613727,1.524653,147.34,147.21,46.35801645]
[1723079613935,1.524653,147.34,147.22,20.17]
[1723079614138,1.524653,147.34,147.23,1.35755148]
[1723079614339,1.524653,147.34,147.24,1.5278672]
[1723079614531,1.524653,147.34,147.24,21.3578672]
[1723079615055,1.524653,147.34,147.22,0.17]
[1723079615056,6.788,147.32,147.22,1.35765999]
[1723079615231,1.524653,147.34,147.25,1.35765999]
[1723079615544,6.7878,147.33,147.23,1.35754701]
[1723079615753,6.7878,147.33,147.19,40.0]
[1723079616056,1.524653,147.34,147.2,46.69776559]
[1723079616344,1.524653,147.34,147.16,20.0]
[1723079616548,1.524653,147.34,147.14,43.15]
[1723079616846,6.7899,147.28,147.15,46.48491731]
[1723079617051,1.524653,147.34,147.18,20.0]
[1723079617247,1.524653,147.34,147.21,20.0]
[1723079617455,1.524653,147.34,147.22,1.35681476]
[1723079617651,6.7876,147.33,147.22,1.35681476]
[1723079617852,1.524653,147.34,147.22,1.35681476]
[1723079618025,1.524653,147.34,147.24,20.0]
[1723079618357,1.524653,147.34,147.25,66.69653832]
[1723079618727,1.524653,147.34,147.25,66.52653832]
[1723079619236,1.524653,147.34,147.28,20.0]
[1723079619434,1.524653,147.34,147.29,66.69616992]
[1723079619625,1.524653,147.34,147.3,1.35635475]
[1723079620027,1.524653,147.34,147.27,1.35690864]
[1723079620454,1.524653,147.34,147.28,0.34]
[1723079620653,1.524653,147.34,147.29,1.35672439]
[1723079620828,1.524653,147.34,147.3,1.6965187]
[1723079621025,1.524653,147.34,147.3,0.17]
[1723079621340,1.524653,147.34,147.31,1.3566074]
[1723079621539,1.524653,147.34,147.31,21.3566074]
[1723079621839,1.524653,147.34,147.29,1.35699227]
[1723079622054,1.524653,147.34,147.3,1.35709413]
[1723079622226,1.524653,147.34,147.31,1.52677609]
[1723079622427,1.524653,147.34,147.31,1.35677609]
[1723079622749,1.524653,147.34,147.28,1.35696847]
[1723079623250,1.524653,147.34,147.2,6.0395]
[1723079623251,1.524653,147.34,147.22,1.35696128]
[1723079623456,1.524653,147.34,147.19,1.35778609]
[1723079623457,0.17,147.33,147.19,1.35778609]
[1723079623634,0.17,147.33,147.15,25.126764]
[1723079623840,1.36900284,147.32,147.15,26.48492568]
[1723079624132,16.9754,147.28,147.13,6.3019]
[1723079624342,46.70900284,147.27,147.1,26.484925]
[1723079624553,16.9791,147.24,147.07,1.35891179]
[1723079624865,16.478,147.23,147.0,83.15]
[1723079625163,88.49,147.22,147.0,43.15]
[1723079625362,6.7963,147.14,147.03,26.484925]
[1723079625664,43.15,147.18,146.99,6.3019]
[1723079625963,6.794,147.19,147.01,63.15]
[1723079626165,0.17,147.2,147.01,43.15]
[1723079626456,6.7976,147.11,147.02,1.3595142]
[1723079626662,16.9862,147.18,147.02,1.3595142]
[1723079626953,16.9862,147.18,147.0,1.35977909]
[1723079626954,6.7977,147.11,147.0,1.35977909]
[1723079627152,43.15,147.16,146.95,27.232424]
[1723079627331,16.9913,147.14,146.95,27.232424]
[1723079627538,6.7997,147.07,146.96,1.23978952]
[1723079627781,6.7997,147.07,146.92,6.3123]
[1723079627782,6.8005,147.05,146.92,6.3123]
[1723079627961,1.53900284,147.06,146.92,6.3123]
[1723079628273,1.36900284,147.05,146.92,6.3123]
[1723079628439,16.9949,147.11,146.92,6.3123]
[1723079628641,6.7996,147.07,146.93,1.33428341]
[1723079628955,6.9692,147.08,146.93,1.33428341]
[1723079629142,43.15,147.12,146.93,1.33428341]
[1723079629343,0.17,147.11,146.95,20.0]
[1723079629542,43.15,147.16,146.96,1.33413172]
[1723079629738,6.7972,147.12,146.96,1.33413172]
[1723079629964,6.7978,147.11,146.96,1.33413172]
[1723079630275,6.7978,147.11,146.93,63.15]
[1723079630276,7.11013322,147.12,146.97,0.43959274]
[1723079630441,1.36900284,147.11,146.94,1.36019383]
[1723079630647,6.8005,147.05,146.93,1.36030042]
[1723079630844,6.8005,147.05,146.92,6.3123]
[1723079631070,6.8009,147.04,146.92,6.3123]
[1723079631268,16.2933,147.08,146.93,1.36043833]
[1723079631447,6.8007,147.05,146.93,1.36043833]
[1723079631767,65.34,147.07,146.93,1.36043833]
[1723079631768,6.801,147.04,146.93,1.36043833]
[1723079631969,6.801,147.04,146.92,1.36043833]
[1723079632347,1.70900284,147.03,146.89,7.11256611]
[1723079632576,0.17,147.03,146.9,1.36100938]
[1723079632796,0.17,147.03,146.85,6.6059]
[1723079632797,6.8032,146.99,146.88,16.9949]
[1723079633009,6.8032,146.99,146.88,1.36099355]
[1723079633308,6.8037,146.98,146.88,6.8032]
[1723079633478,6.8032,146.99,146.88,6.8032]
[1723079633871,0.17,147.02,146.88,6.8032]
[1723079634184,6.8028,147.0,146.88,6.8032]
[1723079634591,0.17,147.01,146.88,6.8032]
[1723079634797,6.8046,146.96,146.88,6.8032]
[1723079635103,1.53900284,146.95,146.79,43.15]
[1723079635309,1.53900284,146.95,146.78,6.6466]
[1723079635310,1.53900284,146.95,146.8,7.11714064]
[1723079635475,6.8083,146.88,146.78,6.6466]
[1723079635671,6.8083,146.88,146.84,6.8046]
[1723079635890,0.17,146.94,146.75,7.11977279]
[1723079635891,16.3776,146.93,146.75,7.11977279]
[1723079636115,16.3776,146.93,146.71,6.1711]
[1723079636116,125.5068,146.92,146.71,6.1711]
[1723079636323,0.17,146.92,146.76,7.119773]
[1723079636495,6.8084,146.88,146.77,1.36194403]
[1723079636700,6.8088,146.87,146.77,1.36194403]
[1723079636898,16.3776,146.93,146.77,1.36194403]
[1723079637119,6.8079,146.89,146.77,1.36194403]
[1723079637433,6.8083,146.88,146.76,8.48174928]
[1723079637596,16.3776,146.93,146.77,1.36188348]
[1723079637794,20.0,146.92,146.77,1.36188348]
[1723079638000,6.8088,146.87,146.76,8.48168967]
[1723079638219,20.0,146.92,146.77,1.36182387]
[1723079638540,0.17,146.91,146.77,1.36182387]
[1723079638691,16.3776,146.93,146.77,1.36182387]
[1723079638892,18.55560284,146.92,146.76,7.119773]
[1723079639128,6.8097,146.85,146.76,7.119773]
[1723079639610,1.36900284,146.9,146.76,7.119773]
[1723079639819,1.36900284,146.92,146.77,1.36220277]
[1723079640120,16.3776,146.93,146.77,1.36220277]
[1723079640328,16.3776,146.93,146.77,21.36220277]
[1723079640629,16.3776,146.93,146.77,1.36220277]
[1723079640630,1.36900284,146.92,146.77,1.36220277]
[1723079640928,33.3933,146.93,146.77,1.36220277]
[1723079641114,33.3933,146.93,146.77,21.36220277]
[1723079641296,45.17,146.92,146.77,21.36220277]
[1723079641496,6.8102,146.84,146.76,7.119773]
[1723079641731,6.8088,146.87,146.77,1.3623155]
[1723079641900,6.8092,146.86,146.77,1.3623155]
[1723079642231,21.36900284,146.85,146.76,7.119773]
[1723079642395,21.36900284,146.85,146.71,6.1711]
[1723079642396,6.8134,146.77,146.71,6.1711]
[1723079642595,0.34,146.84,146.72,1.35365134]
[1723079642801,6.812,146.8,146.71,6.1711]
[1723079643037,1.36900284,146.87,146.71,6.1711]
[1723079643201,6.8113,146.82,146.72,1.36212969]
[1723079643539,6.8114,146.82,146.72,1.36212969]
[1723079643714,1.36900284,146.81,146.71,7.120839]
[1723079644031,17.0304,146.8,146.71,7.120839]
[1723079644233,17.0378,146.74,146.59,1.36341625]
[1723079644400,6.8187,146.66,146.56,6.3248]
[1723079644713,89.85900284,146.73,146.56,6.3248]
[1723079644899,20.0,146.72,146.56,6.3248]
[1723079645099,6.8185,146.66,146.56,6.3248]
[1723079645300,6.8209,146.61,146.5,1.36401272]
[1723079645521,1.36900284,146.7,146.5,1.36401272]
[1723079645522,18.41370284,146.68,146.5,1.36401272]
[1723079645800,6.8157,146.72,146.55,20.0]
[1723079646118,6.4485,146.83,146.6,20.0]
[1723079646119,43.15,146.81,146.6,20.0]
[1723079646326,43.15,146.81,146.56,44.51344696]
[1723079646327,43.15,146.81,146.62,6.3248]
[1723079646626,6.8153,146.73,146.62,7.68798531]
[1723079646834,6.8172,146.69,146.62,6.3248]
[1723079647127,17.0376,146.74,146.58,1.36351101]
[1723079647350,43.32,146.73,146.55,1.36393713]
[1723079647635,20.0,146.72,146.55,1.36393713]
[1723079647837,6.8158,146.72,146.55,1.36393713]
[1723079648003,0.34,146.73,146.55,1.36393713]
[1723079648207,6.8199,146.63,146.54,6.3248]
[1723079648507,6.818,146.67,146.55,1.36427749]
[1723079648707,6.8159,146.72,146.55,1.36427749]
[1723079649133,15.0622,146.85,146.61,20.0]
[1723079649447,44.51900284,146.84,146.62,21.36302949]
[1723079649726,44.51900284,146.84,146.62,22.12302949]
[1723079649727,6.8139,146.76,146.62,22.12302949]
[1723079649965,6.8134,146.77,146.63,0.17]
[1723079650111,17.0259,146.84,146.64,1.36298735]
[1723079650308,15.0622,146.85,146.65,1.36283227]
[1723079650506,1.36900284,146.84,146.65,21.36283227]
[1723079650725,17.0271,146.83,146.66,45.17]
[1723079651033,17.0271,146.83,146.56,43.15]
[1723079651034,43.15,146.78,146.56,43.15]
[1723079651249,63.91,146.78,146.58,1.36347976]
[1723079651438,43.15,146.78,146.58,1.36347976]
[1723079651642,1.36900284,146.81,146.61,40.76]
[1723079651956,15.0622,146.85,146.62,1.36296964]
[1723079652145,6.812,146.8,146.63,49.4835]
[1723079652324,6.8124,146.79,146.64,1.35916625]
[1723079652666,6.8124,146.79,146.64,21.35916625]
[1723079652821,6.8121,146.8,146.65,45.17]
[1723079653175,15.0622,146.85,146.68,40.76]
[1723079653321,43.15,146.93,146.71,43.15]
[1723079653662,17.02230284,146.94,146.73,6.3335]
[1723079653839,17.0152,146.93,146.74,21.36167503]
[1723079654025,1.36900284,146.92,146.75,1.3623467]
[1723079654219,1.36900284,146.92,146.75,46.36234118]
[1723079654529,1.36900284,146.92,146.76,20.0]
[1723079654856,15.6533,146.94,146.77,46.53200366]
[1723079655018,15.6533,146.94,146.78,20.0]
[1723079655219,6.8095,146.86,146.76,27.270134]
[1723079655436,1.36900284,146.93,146.77,1.36223524]
[1723079655756,6.8074,146.9,146.77,1.36223524]
[1723079655928,15.6533,146.94,146.77,1.36223524]
[1723079656251,1.36900284,146.97,146.78,0.34]
[1723079656439,1.36900284,146.97,146.78,1.53174191]
[1723079656628,6.8062,146.93,146.78,1.53174191]
[1723079656825,1.36900284,146.97,146.78,1.36174191]
[1723079657043,6.8078,146.89,146.78,46.36174191]
[1723079657356,20.76,146.95,146.69,43.15]
[1723079657648,34.0239,146.96,146.66,6.922]
[1723079657649,6.8108,146.83,146.71,1.36208947]
[1723079657853,43.15,146.91,146.74,1.36247294]
[1723079658019,46.70900284,146.9,146.74,1.36247294]
[1723079658351,20.0,146.89,146.74,1.36247294]
[1723079658533,6.8076,146.9,146.74,1.36247294]
[1723079658737,60.1629,146.95,146.74,1.36247294]
[1723079658943,6.8053,146.95,146.77,20.76]
[1723079659252,43.15,147.0,146.79,20.0]
[1723079659253,44.51900284,147.0,146.79,20.0]
[1723079659556,6.8046,146.96,146.8,46.70136315]
[1723079659757,61.52640284,147.0,146.81,20.0]
[1723079660063,6.8022,147.02,146.83,6.3203]
[1723079660348,6.8036,146.98,146.84,65.34]
[1723079660652,6.8036,146.98,146.85,1.36114404]
[1723079660829,6.8036,146.98,146.86,1.3610861]
[1723079661028,6.8041,146.97,146.86,1.3610861]
[1723079661225,1.36900284,146.96,146.83,6.3203]
[1723079661544,43.15,146.99,146.84,1.36162319]
[1723079661746,1.36900284,146.98,146.83,6.3203]
[1723079661938,6.8059,146.93,146.83,6.3203]
[1723079662131,6.8054,146.95,146.83,6.3203]
[1723079662340,44.51900284,146.99,146.83,7.68165911]